bitfinex/quotes_SOLUSD_20251106
["timestamp","ask_amount","ask_price","bid_price","bid_amount"]
[1762432541797,6.26674078,158.47,158.41,12.57945707]
[1762432542118,6.26674078,158.47,158.42,9.78882769]
[1762432542498,6.26674078,158.47,158.41,6.31271629]
[1762432542695,6.26674078,158.45,158.38,22.05114226]
[1762432543017,20.592,158.47,158.35,6.31512472]
[1762432543018,6.26674078,158.43,158.35,6.31512472]
[1762432543196,6.26674078,158.43,158.37,6.26674078]
[1762432543396,6.26674078,158.43,158.38,6.31392852]
[1762432543817,6.26674078,158.43,158.37,6.31428012]
[1762432545002,13.62674078,158.44,158.38,9.78882769]
[1762432545391,13.62674078,158.44,158.39,6.31352989]
[1762432545597,13.62674078,158.44,158.37,22.0525588]
[1762432545598,104.7,158.43,158.38,9.78882769]
[1762432545809,104.7,158.43,158.38,16.05556847]
[1762432546004,104.7,158.43,158.39,6.26674078]
[1762432546203,104.7,158.43,158.38,9.78882769]
[1762432546406,104.7,158.43,158.38,16.05556847]
[1762432546619,6.26674078,158.43,158.38,9.78882769]
[1762432546818,6.26674078,158.43,158.37,12.5807386]
[1762432547015,6.26674078,158.43,158.37,6.31399782]
[1762432547514,6.26674078,158.42,158.37,6.31399782]
[1762432548323,4.4726412,158.42,158.37,6.31399782]
[1762432548532,4.4726412,158.41,158.34,9.98882769]
[1762432548731,7.36,158.4,158.35,4.4726412]
[1762432548909,7.36,158.4,158.35,10.78776592]
[1762432549237,11.8326412,158.4,158.34,20.77698153]
[1762432549397,4.4726412,158.39,158.34,6.51551264]
[1762432549595,4.4726412,158.38,158.34,6.51551264]
[1762432549802,4.4726412,158.39,158.34,9.98882769]
[1762432550004,4.4726412,158.39,158.34,16.30416493]
[1762432550211,11.8326412,158.4,158.34,20.77680613]
[1762432550731,7.38,158.39,158.36,14.26146889]
[1762432551023,7.38,158.39,158.36,9.78882769]
[1762432552023,7.38,158.39,158.36,16.10334945]
[1762432555136,7.38,158.39,158.36,6.31452176]
[1762432555820,7.38,158.39,158.35,6.31501855]
[1762432556205,7.38,158.39,158.34,20.77692201]
[1762432556837,7.38,158.39,158.35,4.4726412]
[1762432557005,4.4726412,158.4,158.34,20.77692201]
[1762432557206,7.36,158.38,158.34,20.77692201]
[1762432557432,7.36,158.38,158.34,0.2]
[1762432557724,4.4726412,158.36,158.34,0.2]
[1762432557898,25.0646412,158.35,158.34,0.2]
[1762432558302,20.592,158.35,158.34,0.2]
[1762432559933,38.73976592,158.35,158.34,0.2]
[1762432561727,88.73976592,158.35,158.34,0.2]
[1762432562242,98.52859361,158.35,158.34,0.2]
[1762432562450,20.592,158.32,158.31,0.1]
[1762432562639,12.62218137,158.32,158.31,0.1]
[1762432563123,11.8326412,158.32,158.31,0.1]
[1762432563324,25.0646412,158.32,158.31,0.1]
[1762432563526,32.4246412,158.32,158.31,0.1]
[1762432564442,38.74096257,158.32,158.31,0.1]
[1762432564844,32.4246412,158.32,158.31,0.1]
[1762432565021,31.38096257,158.32,158.31,0.1]
[1762432565345,38.74096257,158.32,158.31,0.1]
[1762432565643,31.63376251,158.44,158.31,0.1]
[1762432565644,6.3143272,158.37,158.31,0.1]
[1762432565846,4.4726412,158.34,158.31,0.1]
[1762432566044,7.36,158.33,158.31,6.41658061]
[1762432566354,7.36,158.32,158.31,0.1]
[1762432567221,7.36,158.32,158.31,6.41672035]
[1762432567421,66.57381549,158.39,158.31,6.41672035]
[1762432567422,59.78882769,158.42,158.31,10.88936155]
[1762432567619,4.4726412,158.39,158.33,4.4726412]
[1762432567847,27.972,158.38,158.33,4.4726412]
[1762432568055,32.4446412,158.38,158.33,6.3155887]
[1762432568280,4.4726412,158.36,158.31,0.1]
[1762432568432,27.972,158.38,158.31,0.1]
[1762432568433,7.38,158.35,158.32,9.78882769]
[1762432568753,7.38,158.35,158.32,14.26146889]
[1762432569129,7.38,158.35,158.33,5.1226412]
[1762432569354,0.61,158.4,158.35,9.78882769]
[1762432569524,15.77813496,158.45,158.35,14.26146889]
[1762432569525,7.38,158.39,158.35,14.26146889]
[1762432569836,7.38,158.38,158.34,14.26146889]
[1762432570039,7.99,158.38,158.34,4.4726412]
[1762432570249,7.99,158.38,158.35,6.31512472]
[1762432570864,7.99,158.38,158.35,6.96512472]
[1762432571347,7.38,158.38,158.35,6.96512472]
[1762432571662,7.38,158.38,158.34,20.57696406]
[1762432571851,0.61,158.37,158.32,14.26146889]
[1762432572055,0.61,158.37,158.32,9.78882769]
[1762432572230,0.61,158.37,158.33,0.65]
[1762432572438,0.61,158.37,158.33,5.1226412]
[1762432572648,7.38,158.36,158.33,5.1226412]
[1762432572852,7.38,158.36,158.34,5.1226412]
[1762432573357,7.38,158.36,158.35,0.65]
[1762432574358,7.38,158.36,158.35,6.96512472]
[1762432574857,7.38,158.36,158.35,16.75395241]
[1762432575043,7.38,158.37,158.35,37.01440541]
[1762432575241,7.38,158.37,158.36,0.65]
[1762432575628,7.38,158.37,158.36,14.91146889]
[1762432576461,7.38,158.37,158.36,21.22619483]
[1762432577754,7.36,158.42,158.37,9.78882769]
[1762432577934,7.97,158.42,158.38,5.1226412]
[1762432578350,7.97,158.42,158.39,6.31352989]
[1762432579552,7.36,158.42,158.39,6.31352989]
[1762432579749,7.36,158.42,158.39,6.96352989]
[1762432580563,7.36,158.42,158.4,9.78882769]
[1762432580763,7.36,158.42,158.41,11.5058396]
[1762432580962,7.36,158.42,158.41,12.1558396]
[1762432581165,7.38,158.45,158.42,9.78882769]
[1762432581341,7.38,158.46,158.42,10.43882769]
[1762432581672,7.38,158.46,158.34,9.78882769]
[1762432581673,20.592,158.42,158.34,9.78882769]
[1762432581845,1.71701191,158.38,158.34,9.78882769]
[1762432582040,27.972,158.41,158.34,9.78882769]
[1762432582041,7.4,158.37,158.34,16.10420522]
[1762432582245,7.4,158.36,158.34,6.31537753]
[1762432583947,7.4,158.36,158.35,10.49882769]
[1762432584644,7.4,158.36,158.35,16.81395241]
[1762432584966,7.4,158.36,158.35,7.02512472]
[1762432589489,7.4,158.39,158.31,0.1]
[1762432589666,20.592,158.35,158.31,0.1]
[1762432589843,20.592,158.35,158.31,7.12666656]
[1762432589844,7.4,158.34,158.31,7.12666656]
[1762432590361,7.4,158.34,158.32,0.71]
[1762432590555,7.4,158.34,158.32,10.49882769]
[1762432590753,7.4,158.34,158.33,7.02592244]
[1762432590969,20.592,158.38,158.34,9.78882769]
[1762432590970,28.012,158.38,158.34,9.78882769]
[1762432591179,28.012,158.38,158.34,14.97404199]
[1762432591362,28.012,158.38,158.35,0.71]
[1762432591765,7.42,158.38,158.35,5.1852143]
[1762432592153,7.42,158.38,158.36,0.71]
[1762432592668,7.42,158.38,158.36,7.02457027]
[1762432593569,7.42,158.38,158.37,0.71]
[1762432593954,0.61,158.43,158.38,9.78882769]
[1762432594154,20.592,158.41,158.38,9.78882769]
[1762432594376,20.592,158.41,158.38,10.49882769]
[1762432594872,20.592,158.41,158.39,6.31352989]
[1762432595047,5.0852143,158.41,158.38,9.78882769]
[1762432595248,0.61,158.4,158.36,9.78882769]
[1762432595556,11.8752143,158.39,158.35,6.31500082]
[1762432595861,11.8752143,158.39,158.32,25.0672143]
[1762432595862,4.4752143,158.38,158.32,9.78882769]
[1762432596056,7.42,158.37,158.32,9.78882769]
[1762432596255,7.42,158.37,158.32,10.49882769]
[1762432596457,8.03,158.37,158.33,0.71]
[1762432596957,8.03,158.37,158.33,0.69]
[1762432597359,7.42,158.37,158.34,9.78882769]
[1762432597857,7.42,158.37,158.34,10.47882769]
[1762432599151,7.42,158.37,158.34,16.79434271]
[1762432599758,7.42,158.37,158.34,16.10434271]
[1762432599960,7.42,158.37,158.35,0.69]
[1762432600173,7.42,158.37,158.34,16.79434271]
[1762432601369,7.42,158.37,158.34,7.00551502]
[1762432601879,8.03,158.37,158.33,6.31583304]
[1762432602072,7.42,158.37,158.33,7.00583304]
[1762432602271,8.03,158.37,158.33,7.00583304]
[1762432603478,7.42,158.37,158.34,10.47882769]
[1762432604755,7.4,158.38,158.34,10.47882769]
[1762432605082,8.01,158.38,158.34,10.47882769]
[1762432605477,8.01,158.38,158.35,6.31512472]
[1762432606481,8.01,158.38,158.34,16.79427546]
[1762432607391,18.98073455,158.45,158.37,1.71814553]
[1762432607560,18.98073455,158.45,158.35,8.09]
[1762432607561,18.98073455,158.45,158.41,9.78882769]
[1762432607768,18.98073455,158.45,158.39,6.31352989]
[1762432607769,19.59073455,158.45,158.39,6.31352989]
[1762432608074,7.42,158.44,158.4,0.69]
[1762432608760,7.42,158.44,158.41,9.78882769]
[1762432609176,7.42,158.44,158.41,10.47882769]
[1762432609382,0.61,158.43,158.4,9.78882769]
[1762432609688,7.42,158.44,158.4,10.47882769]
[1762432609984,7.42,158.44,158.4,16.79194703]
[1762432612386,7.42,158.44,158.4,23.07083172]
[1762432612764,6.88888469,158.43,158.31,7.52]
[1762432612960,0.61,158.43,158.37,16.06771238]
[1762432613361,0.61,158.43,158.38,6.27888469]
[1762432613561,0.61,158.43,158.37,16.73771238]
[1762432613974,0.61,158.43,158.38,6.31392852]
[1762432615072,0.61,158.43,158.38,13.26281321]
[1762432615272,0.61,158.43,158.39,9.78882769]
[1762432616382,7.42,158.44,158.4,0.67]
[1762432616595,8.03,158.44,158.4,0.67]
[1762432616892,0.61,158.43,158.38,22.76874983]
[1762432617280,0.61,158.43,158.39,0.67]
[1762432617886,0.61,158.43,158.39,6.98327024]
[1762432618479,0.61,158.43,158.39,6.31327024]
[1762432618986,104.7,158.42,158.39,6.31327024]
[1762432619173,104.7,158.42,158.38,22.09874983]
[1762432619372,105.31,158.42,158.38,22.76874983]
[1762432619587,104.7,158.42,158.39,0.67]
[1762432620296,104.7,158.42,158.39,6.98331417]
[1762432620793,104.7,158.42,158.4,6.94888469]
[1762432621098,104.7,158.47,158.41,6.94888469]
[1762432621299,112.1,158.47,158.44,9.78882769]
[1762432621676,112.1,158.47,158.45,0.67]
[1762432622091,104.7,158.47,158.46,6.31074088]
[1762432622296,104.7,158.47,158.45,6.98113402]
[1762432623097,0.1,158.52,158.46,10.45882769]
[1762432623098,104.8,158.52,158.46,10.45882769]
[1762432623300,104.8,158.52,158.48,9.78882769]
[1762432623686,104.8,158.52,158.48,0.67]
[1762432623996,112.2,158.52,158.46,16.06771238]
[1762432624225,112.2,158.52,158.48,0.67]
[1762432624398,104.8,158.52,158.49,6.30954634]
[1762432624704,112.2,158.52,158.48,10.45882769]
[1762432624910,6.27888469,158.5,158.44,0.67]
[1762432625077,13.67888469,158.49,158.45,9.78882769]
[1762432625281,7.4,158.48,158.45,9.78882769]
[1762432625685,7.4,158.48,158.45,10.45882769]
[1762432626004,7.4,158.48,158.45,16.76983016]
[1762432626374,6.88888469,158.5,158.45,6.98100247]
[1762432626688,7.4,158.49,158.45,6.98100247]
[1762432626882,6.88888469,158.49,158.42,16.06771238]
[1762432627088,6.27888469,158.46,158.4,15.78196061]
[1762432627302,7.4,158.45,158.41,9.78882769]
[1762432627496,7.4,158.45,158.4,16.45196061]
[1762432627497,7.4,158.44,158.4,6.98299698]
[1762432627678,7.4,158.43,158.4,6.98299698]
[1762432627876,7.4,158.43,158.39,16.10235758]
[1762432628101,7.4,158.46,158.43,9.78882769]
[1762432628403,26.87088469,158.5,158.45,9.78882769]
[1762432628590,7.4,158.49,158.45,9.78882769]
[1762432628779,7.4,158.49,158.45,0.67]
[1762432628976,13.67888469,158.49,158.41,9.78882769]
[1762432629227,6.88888469,158.48,158.41,17.85882769]
[1762432629374,6.88888469,158.48,158.41,24.13771238]
[1762432629584,0.61,158.47,158.41,24.13771238]
[1762432629790,0.61,158.47,158.41,10.45882769]
[1762432629986,7.4,158.46,158.42,6.3123343]
[1762432630213,20.592,158.45,158.42,6.3123343]
[1762432630682,20.592,158.45,158.42,6.9823343]
[1762432630882,20.592,158.45,158.42,6.3123343]
[1762432631981,21.202,158.45,158.42,6.3123343]
[1762432632598,6.88888469,158.44,158.4,9.78882769]
[1762432632787,7.4,158.43,158.4,9.78882769]
[1762432632987,8.01,158.43,158.4,9.78882769]
[1762432633221,0.61,158.42,158.39,6.31341399]
[1762432633794,0.61,158.42,158.38,6.31379093]
[1762432633795,6.88888469,158.42,158.38,6.31379093]
[1762432634104,7.4,158.41,158.37,6.3143272]
[1762432634310,8.01,158.41,158.37,6.3143272]
[1762432635711,27.992,158.41,158.38,9.78882769]
[1762432636004,20.592,158.41,158.38,10.45882769]
[1762432636225,7.4,158.43,158.4,9.78882769]
[1762432636403,7.4,158.43,158.38,9.78882769]
[1762432636404,0.61,158.42,158.38,9.78882769]
[1762432636718,6.27888469,158.39,158.34,9.78882769]
[1762432637017,20.592,158.41,158.32,6.27888469]
[1762432637018,6.27888469,158.37,158.32,9.78882769]
[1762432637218,7.42,158.36,158.32,9.78882769]
[1762432637425,8.03,158.36,158.32,9.78882769]
[1762432637605,8.03,158.36,158.32,16.10514906]
[1762432637606,14.30888469,158.36,158.32,16.10514906]
[1762432637806,8.03,158.36,158.32,16.10514906]
[1762432638003,7.42,158.36,158.32,6.98632137]
[1762432639418,13.69888469,158.36,158.32,6.98632137]
[1762432640613,7.42,158.36,158.32,6.98632137]
[1762432640813,7.42,158.36,158.32,6.31632137]
[1762432641017,7.42,158.36,158.33,0.67]
[1762432641515,7.42,158.36,158.32,6.31632137]
[1762432641736,7.42,158.36,158.34,9.78882769]
[1762432642096,7.42,158.36,158.35,10.45882769]
[1762432642304,104.7,158.39,158.36,9.78882769]
[1762432642509,112.1,158.39,158.36,0.7]
[1762432642713,112.1,158.39,158.37,0.7]
[1762432643500,112.1,158.39,158.35,9.78882769]
[1762432643501,118.37888469,158.39,158.35,9.78882769]
[1762432643702,118.98888469,158.39,158.35,9.78882769]
[1762432643909,118.98888469,158.39,158.34,6.31546485]
[1762432644108,118.98888469,158.39,158.35,0.7]
[1762432644310,118.98888469,158.39,158.34,6.31546485]
[1762432644512,6.88888469,158.38,158.34,6.31546485]
[1762432645524,118.37888469,158.39,158.34,7.01546485]
[1762432645823,118.37888469,158.39,158.35,0.7]
[1762432646720,118.37888469,158.39,158.35,7.01476442]
[1762432647121,7.4,158.38,158.35,7.01476442]
[1762432648730,7.4,158.38,158.35,6.31476442]
[1762432648909,7.4,158.38,158.35,7.01476442]
[1762432649617,7.4,158.38,158.35,6.31476442]
[1762432649818,7.4,158.38,158.34,6.31552355]
[1762432650142,7.4,158.38,158.34,7.01552355]
[1762432650440,7.4,158.38,158.35,0.7]
[1762432650631,7.4,158.38,158.34,7.01552355]
[1762432650927,8.01,158.38,158.34,6.31539721]
[1762432651125,8.01,158.38,158.34,7.01539721]
[1762432651708,13.67888469,158.38,158.33,6.31578642]
[1762432651912,0.61,158.37,158.33,6.31578642]
[1762432652133,0.61,158.37,158.33,7.01578642]
[1762432652630,3.29511963,158.37,158.33,7.01578642]
[1762432653317,2.68511963,158.37,158.33,7.01578642]
[1762432653823,0.61,158.36,158.32,6.31617327]
[1762432654132,7.4,158.35,158.32,6.31617327]
[1762432654830,8.01,158.35,158.32,6.31617327]
[1762432655635,7.4,158.35,158.32,7.01617327]
[1762432657233,7.4,158.35,158.32,6.31617327]
[1762432657720,7.4,158.35,158.32,6.98617327]
[1762432658231,7.4,158.35,158.32,6.31617327]
[1762432659130,7.4,158.35,158.32,6.98617327]
[1762432659537,7.4,158.35,158.33,0.67]
[1762432660437,7.4,158.35,158.32,6.31617327]
[1762432660637,7.4,158.35,158.32,6.98617327]
[1762432660940,10.69511963,158.35,158.32,6.31617327]
[1762432661341,7.4,158.35,158.32,6.98617327]
[1762432661927,7.4,158.35,158.33,0.67]
[1762432663943,7.4,158.35,158.33,6.98587705]
[1762432664916,7.4,158.35,158.33,0.67]
[1762432665116,7.4,158.35,158.33,6.98589668]
[1762432668237,7.4,158.35,158.34,0.67]
[1762432668440,7.4,158.35,158.31,16.87517019]
[1762432668743,9.72861185,158.35,158.31,6.4163425]
[1762432669259,1.71861185,158.34,158.31,0.1]
[1762432669543,106.41861185,158.34,158.31,0.1]
[1762432669940,7.38,158.33,158.31,0.1]
[1762432670245,1.71861185,158.32,158.31,0.1]
[1762432670421,2.32861185,158.32,158.31,0.1]
[1762432672025,11.15308524,158.32,158.31,0.1]
[1762432672331,31.74508524,158.32,158.31,0.1]
[1762432673565,70.592,158.31,158.3,0.1]
[1762432673730,72.92061185,158.31,158.3,0.1]
[1762432674132,86.6173322,158.31,158.3,0.1]
[1762432674642,152.40913309,158.31,158.25,0.2]
[1762432674844,1.71861185,158.26,158.25,0.2]
[1762432675036,9.09861185,158.26,158.25,0.2]
[1762432676145,9.70861185,158.26,158.25,0.2]
[1762432676545,16.02732788,158.26,158.25,0.2]
[1762432676759,15.41732788,158.26,158.25,0.2]
[1762432676952,9.09861185,158.26,158.25,0.2]
[1762432680557,16.02732788,158.26,158.25,0.2]
[1762432683544,9.09861185,158.26,158.25,0.2]
[1762432683751,1.71861185,158.26,158.25,0.2]
[1762432684055,9.09861185,158.26,158.25,0.2]
[1762432684553,66.02732788,158.26,158.25,0.2]
[1762432684753,50.0,158.22,158.2,0.1]
[1762432684946,9.88870097,158.21,158.2,0.1]
[1762432685256,10.49870097,158.21,158.2,0.1]
[1762432686129,60.49870097,158.21,158.2,0.1]
[1762432686767,20.592,158.19,158.18,0.2]
[1762432686936,50.0,158.23,158.18,6.52191174]
[1762432687149,0.61,158.24,158.18,6.52191174]
[1762432687150,9.11861185,158.24,158.18,6.52191174]
[1762432687335,7.4,158.24,158.18,18.02935128]
[1762432687543,9.11861185,158.24,158.19,0.69]
[1762432687954,20.592,158.27,158.2,9.78882769]
[1762432688163,28.012,158.26,158.2,11.50743954]
[1762432688363,28.012,158.26,158.21,0.69]
[1762432688741,7.42,158.26,158.22,6.32031348]
[1762432689249,7.42,158.26,158.23,0.69]
[1762432690763,1.71861185,158.28,158.24,6.31951466]
[1762432690968,7.42,158.27,158.24,7.00951466]
[1762432691273,7.42,158.27,158.24,0.69]
[1762432693355,7.42,158.27,158.24,7.00942299]
[1762432693850,7.42,158.27,158.24,0.69]
[1762432695670,22.31061185,158.26,158.2,9.78882769]
[1762432695964,1.71861185,158.24,158.2,0.69]
[1762432696167,1.71861185,158.24,158.21,0.69]
[1762432696340,7.4,158.25,158.21,0.69]
[1762432696545,7.4,158.24,158.22,11.50743954]
[1762432696760,1.71861185,158.28,158.22,9.78882769]
[1762432696958,7.44,158.27,158.23,0.69]
[1762432697369,1.71861185,158.28,158.23,0.69]
[1762432697568,9.76861185,158.27,158.23,0.69]
[1762432697781,1.71861185,158.25,158.21,0.69]
[1762432697949,7.44,158.24,158.21,0.69]
[1762432698958,113.85861185,158.24,158.21,0.69]
[1762432700777,7.44,158.23,158.21,0.69]
[1762432701747,106.41861185,158.24,158.21,0.69]
[1762432701954,7.42,158.23,158.21,7.01062031]
[1762432702574,7.42,158.23,158.22,0.67]
[1762432704087,7.42,158.23,158.22,6.99031348]
[1762432704658,7.42,158.23,158.22,0.67]
[1762432705885,7.42,158.23,158.2,6.32096731]
[1762432706382,7.42,158.23,158.21,0.67]
[1762432707066,7.42,158.23,158.21,6.99065466]
[1762432707590,7.42,158.23,158.22,0.67]
[1762432707787,9.13861185,158.23,158.19,9.78882769]
[1762432707964,9.13861185,158.23,158.2,0.67]
[1762432708589,1.71861185,158.22,158.2,0.67]
[1762432708889,7.42,158.21,158.2,0.67]
[1762432709971,7.42,158.21,158.2,6.99111251]
[1762432710181,7.42,158.22,158.2,16.7799402]
[1762432710489,106.41861185,158.25,158.21,0.67]
[1762432710690,1.71861185,158.24,158.21,0.67]
[1762432710893,7.42,158.23,158.21,0.67]
[1762432711392,9.13861185,158.23,158.18,0.87]
[1762432711574,1.71861185,158.22,158.19,0.67]
[1762432712692,20.592,158.19,158.18,0.2]
[1762432712894,22.31061185,158.19,158.18,0.2]
[1762432713101,29.73061185,158.19,158.18,0.2]
[1762432713983,22.31061185,158.19,158.18,0.2]
[1762432714186,29.73061185,158.19,158.18,0.2]
[1762432714769,22.31061185,158.19,158.18,0.2]
[1762432715294,29.73061185,158.19,158.18,0.2]
[1762432715895,36.05212395,158.19,158.18,0.2]
[1762432716095,29.73061185,158.19,158.18,0.2]
[1762432716585,36.05212395,158.19,158.18,0.2]
[1762432717901,36.66212395,158.19,158.18,0.2]
[1762432718101,30.34061185,158.19,158.18,0.2]
[1762432718304,36.66212395,158.19,158.18,0.2]
[1762432720406,29.73061185,158.19,158.18,0.2]
[1762432720596,28.012,158.19,158.18,0.2]
[1762432720800,22.31061185,158.19,158.18,0.2]
[1762432721113,29.71061185,158.19,158.18,0.2]
[1762432721412,29.71061185,158.19,158.18,0.9]
[1762432721807,7.4,158.19,158.18,0.9]
[1762432721993,1.71861185,158.23,158.18,7.22191174]
[1762432722206,7.42,158.22,158.19,0.7]
[1762432722405,7.42,158.22,158.19,7.0212339]
[1762432722797,50.0,158.29,158.21,1.71861185]
[1762432722798,1.71861185,158.27,158.21,1.71861185]
[1762432722999,7.4,158.26,158.22,0.7]
[1762432723314,7.4,158.26,158.22,2.41861185]
[1762432723501,7.42,158.25,158.22,2.41861185]
[1762432723690,7.42,158.24,158.23,0.7]
[1762432724690,7.42,158.24,158.23,7.01991404]
[1762432724898,7.42,158.24,158.23,0.7]
[1762432725492,7.42,158.24,158.23,7.01991404]
[1762432725714,7.42,158.24,158.23,16.80874173]
[1762432726921,7.42,158.24,158.23,10.48882769]
[1762432727695,7.42,158.24,158.23,0.7]
[1762432729798,7.42,158.24,158.21,6.32059889]
[1762432729998,7.42,158.24,158.2,6.32098318]
[1762432730235,7.42,158.24,158.21,0.7]
[1762432731410,10.71942464,158.24,158.19,7.02137651]
[1762432731617,10.10942464,158.24,158.2,0.7]
[1762432731810,114.80942464,158.24,158.2,0.7]
[1762432732008,2.68942464,158.23,158.18,6.52184578]
[1762432732322,2.68942464,158.22,158.18,7.22184578]
[1762432732528,7.4,158.21,158.19,0.68]
[1762432733015,7.4,158.21,158.2,6.32111251]
[1762432733421,7.4,158.21,158.2,9.69053715]
[1762432733831,7.4,158.21,158.2,0.68]
[1762432735016,7.4,158.21,158.19,6.32146815]
[1762432735226,7.4,158.2,158.18,7.20181629]
[1762432735409,7.4,158.2,158.18,6.52181629]
[1762432735610,7.4,158.2,158.19,0.68]
[1762432736324,7.4,158.2,158.18,0.2]
[1762432736523,10.08942464,158.2,158.18,0.2]
[1762432736840,2.68942464,158.19,158.18,0.2]
[1762432738226,10.08942464,158.2,158.18,0.2]
[1762432738826,2.68942464,158.19,158.18,0.2]
[1762432739925,7.4,158.2,158.18,0.88]
[1762432740110,20.592,158.21,158.18,9.89125281]
[1762432740314,7.4,158.21,158.19,0.68]
[1762432740925,7.4,158.21,158.19,3.36942464]
[1762432741324,7.4,158.21,158.2,7.00111251]
[1762432742118,7.4,158.21,158.2,0.68]
[1762432743020,7.4,158.21,158.18,18.694204]
[1762432743021,7.4,158.21,158.18,6.5218013]
[1762432743227,7.4,158.21,158.19,7.00118395]
[1762432743733,7.4,158.21,158.2,0.68]
[1762432744709,10.08942464,158.21,158.18,0.2]
[1762432744950,2.68942464,158.19,158.18,0.2]
[1762432746035,3.29942464,158.19,158.18,0.2]
[1762432746235,2.68942464,158.19,158.18,0.2]
[1762432746424,104.7,158.2,158.18,0.2]
[1762432746626,107.38942464,158.2,158.18,0.2]
[1762432747010,113.71060848,158.2,158.18,0.2]
[1762432747211,107.38942464,158.2,158.18,0.2]
[1762432747406,104.7,158.2,158.19,0.68]
[1762432747634,103.98,158.2,158.19,13.15825233]
[1762432747837,2.68942464,158.3,158.2,9.78882769]
[1762432748140,7.4,158.29,158.26,2.68942464]
[1762432748347,7.4,158.28,158.26,2.68942464]
[1762432748551,7.4,158.28,158.26,3.36942464]
[1762432748836,7.4,158.28,158.26,2.68942464]
[1762432749046,7.4,158.28,158.27,6.9983168]
[1762432749433,7.4,158.28,158.26,9.00800548]
[1762432749615,7.4,158.28,158.26,0.68]
[1762432750246,7.4,158.28,158.26,6.99871463]
[1762432750429,7.4,158.28,158.25,6.31900072]
[1762432750633,7.4,158.28,158.26,0.68]
[1762432750819,7.4,158.28,158.25,13.28960034]
[1762432751025,7.4,158.28,158.26,0.68]
[1762432751232,7.4,158.28,158.26,6.99853342]
[1762432751432,7.4,158.28,158.24,6.97059962]
[1762432751634,8.12,158.28,158.24,6.31949617]
[1762432751853,13.69059962,158.28,158.23,12.61038414]
[1762432752043,0.72,158.27,158.23,6.99978452]
[1762432752744,0.72,158.27,158.23,0.68]
[1762432753437,0.72,158.27,158.23,6.99987534]
[1762432754824,0.72,158.27,158.23,0.68]
[1762432755040,0.72,158.27,158.23,6.99983576]
[1762432755247,0.72,158.27,158.23,0.68]
[1762432756240,7.01059962,158.27,158.22,6.32019942]
[1762432756446,110.27059962,158.26,158.22,0.68]
[1762432756627,7.4,158.25,158.22,7.00005546]
[1762432758336,7.4,158.24,158.22,7.00005546]
[1762432758854,7.4,158.24,158.23,0.68]
[1762432759152,7.4,158.24,158.23,6.97059962]
[1762432759359,111.38,158.26,158.23,6.97059962]
[1762432759545,111.38,158.26,158.24,6.97059962]
[1762432760052,111.38,158.26,158.24,0.68]
[1762432762153,111.38,158.26,158.24,6.99943511]
[1762432763054,111.38,158.26,158.22,6.97059962]
[1762432763259,111.38,158.26,158.23,0.68]
[1762432763933,111.38,158.26,158.23,6.31957626]
[1762432764249,111.38,158.26,158.23,6.99957626]
[1762432765348,111.38,158.26,158.23,0.68]
[1762432765653,112.09,158.26,158.22,6.32021883]
[1762432765855,112.09,158.26,158.22,7.00021883]
[1762432768353,111.38,158.26,158.24,6.29059962]
[1762432768838,111.38,158.26,158.24,6.97059962]
[1762432769235,111.38,158.26,158.25,0.68]
[1762432769560,111.38,158.26,158.24,6.29059962]
[1762432769755,111.38,158.26,158.24,6.97059962]